fUSD/lending_fUSD_20250503
["ID","MTS","AMOUNT","RATE_DAILY","PERIOD"]
[359757764,1746304242007,-450.0,0.00019853,2]
[359757765,1746304242016,-450.0,0.00019853,2]
[359757766,1746304242026,-450.0,0.00019853,2]
[359757767,1746304242036,-450.0,0.00019853,2]
[359757768,1746304242045,-450.0,0.00019853,2]
[359757769,1746304242055,-450.0,0.00019853,2]
[359757770,1746304242065,-450.0,0.00019853,2]
[359757771,1746304242074,-450.0,0.00019853,2]
[359757772,1746304242083,-500.0,0.00019853,2]
[359757773,1746304242093,-450.0,0.00019853,2]
[359757774,1746304242103,-450.0,0.00019853,2]
[359757775,1746304242112,-450.0,0.00019853,2]
[359757776,1746304242121,-450.0,0.00019853,2]
[359757777,1746304242131,-450.0,0.00019853,2]
[359757778,1746304242140,-450.0,0.00019853,2]
[359757779,1746304242149,-450.0,0.00019853,2]
[359757780,1746304242159,-450.0,0.00019853,2]
[359757781,1746304242169,-450.0,0.00019853,2]
[359757782,1746304242178,-450.0,0.00019853,2]
[359757783,1746304242187,-450.0,0.00019853,2]
[359757784,1746304242197,-450.0,0.00019853,2]
[359757785,1746304242206,-450.0,0.00019853,2]
[359757786,1746304242215,-450.0,0.00019853,2]
[359757787,1746304242225,-450.0,0.00019853,2]
[359757788,1746304242234,-450.0,0.00019853,2]
[359757789,1746304242244,-450.0,0.00019853,2]
[359757790,1746304242253,-450.0,0.00019853,2]
[359757791,1746304242262,-450.0,0.00019853,2]
[359757792,1746304242272,-450.0,0.00019853,2]
[359757793,1746304242281,-450.0,0.00019853,2]
[359757794,1746304242291,-450.0,0.00019853,2]
[359757795,1746304242300,-450.0,0.00019853,2]
[359757796,1746304242309,-450.0,0.00019853,2]
[359757797,1746304242319,-450.0,0.00019853,2]
[359757798,1746304242328,-450.0,0.00019853,2]
[359757799,1746304242337,-450.0,0.00019853,2]
[359757800,1746304242346,-450.0,0.00019853,2]
[359757801,1746304242355,-2551.38,0.00019853,2]
[359757802,1746304242364,-450.0,0.00019853,2]
[359757803,1746304242379,-486.14,0.00019853,2]
[359757804,1746304242389,-450.0,0.00019853,2]
[359757805,1746304242400,-510.62,0.00019853,2]
[359757806,1746304242409,-1350.13,0.00019853,2]
[359757807,1746304242419,-194.53251863,0.00019853,2]
[359757808,1746304242429,-450.0,0.00019853,2]
[359757809,1746304242439,-484.32,0.00019853,2]
[359757810,1746304242451,-450.0,0.00019853,2]
[359757811,1746304242462,-450.0,0.00019853,2]
[359757812,1746304242473,-450.0,0.00019853,2]
[359757813,1746304242482,-450.0,0.00019853,2]
[359757814,1746304242491,-450.0,0.00019853,2]
[359757815,1746304242500,-450.0,0.00019853,2]
[359757816,1746304242509,-529.98,0.00019853,2]
[359757817,1746304242520,-450.0,0.00019853,2]
[359757818,1746304242530,-450.0,0.00019853,2]
[359757819,1746304242539,-450.0,0.00019853,2]
[359757820,1746304242548,-450.0,0.00019853,2]
[359757821,1746304242556,-519.49,0.00019853,2]
[359757822,1746304242566,-450.0,0.00019853,2]
[359757823,1746304242575,-450.0,0.00019853,2]
[359757824,1746304242584,-450.0,0.00019853,2]
[359757825,1746304242594,-687.22,0.00019853,2]
[359757826,1746304242603,-521.43,0.00019853,2]
[359757827,1746304242612,-450.0,0.00019853,2]
[359757828,1746304242622,-450.0,0.00019853,2]
[359757829,1746304242631,-479.20352983,0.00019853,2]
[359757830,1746304242640,-523.20208212,0.00019853,2]
[359757831,1746304242649,-709.68,0.00019853,2]
[359757832,1746304242658,-450.0,0.00019853,2]
[359757833,1746304242666,-482.04692344,0.00019853,2]
[359757834,1746304242676,-473.97622075,0.00019853,2]
[359757835,1746304242686,-450.0,0.00019853,2]
[359757836,1746304242696,-450.0,0.00019853,2]
[359757837,1746304242706,-564.89707459,0.00019853,2]
[359757838,1746304242715,-450.0,0.00019853,2]
[359757839,1746304242724,-510.92426429,0.00019853,2]
[359757840,1746304242733,-450.0,0.00019853,2]
[359757841,1746304242742,-1061.78,0.00019853,2]
[359757842,1746304242751,-533.95367948,0.00019853,2]
[359757843,1746304242762,-450.0,0.00019853,2]
[359757844,1746304242771,-611.52,0.00019853,2]
[359757845,1746304242780,-450.0,0.00019853,2]
[359757846,1746304242789,-450.0,0.00019853,2]
[359757847,1746304242798,-450.0,0.00019853,2]
[359757848,1746304242807,-458.93,0.00019853,2]
[359757849,1746304242819,-450.0,0.00019853,2]
[359757850,1746304242829,-450.0,0.00019853,2]
[359757851,1746304242838,-529.54923781,0.00019853,2]
[359757852,1746304242847,-450.0,0.00019853,2]
[359757853,1746304242856,-450.0,0.00019853,2]
[359757854,1746304242865,-450.0,0.00019853,2]
[359757855,1746304242874,-1210.2,0.00019853,2]
[359757856,1746304242883,-450.0,0.00019853,2]
[359757857,1746304242892,-450.0,0.00019853,2]
[359757858,1746304242901,-450.0,0.00019853,2]
[359757859,1746304242910,-450.0,0.00019853,2]
[359757860,1746304242919,-519.35,0.00019853,2]
[359757861,1746304242928,-483.42226741,0.00019853,2]
[359757862,1746304242938,-450.0,0.00019853,2]
[359757863,1746304242948,-450.0,0.00019853,2]
[359757864,1746304242958,-546.24213029,0.00019853,2]
[359757865,1746304242968,-450.0,0.00019853,2]
[359757866,1746304242977,-307.94111165,0.00019853,2]
[359757867,1746304242985,-450.0,0.00019853,2]
[359757868,1746304242995,-450.0,0.00019853,2]
[359757869,1746304243006,-475.12,0.00019853,2]
[359757871,1746304243015,-450.0,0.00019853,2]
[359757872,1746304243024,-450.0,0.00019853,2]
[359757873,1746304243033,-450.0,0.00019853,2]
[359757874,1746304243042,-450.0,0.00019853,2]
[359757875,1746304243052,-450.0,0.00019853,2]
[359757876,1746304243062,-500.0,0.00019853,2]
[359757877,1746304243073,-450.0,0.00019853,2]
[359757878,1746304243083,-480.61657555,0.00019853,2]
[359757879,1746304243094,-490.88189455,0.00019853,2]
[359757880,1746304243104,-450.0,0.00019853,2]
[359757881,1746304243113,-450.0,0.00019853,2]
[359757882,1746304243123,-450.0,0.00019853,2]
[359757883,1746304243133,-167.17367774,0.00019853,2]
[359757884,1746304243142,-185.50934107,0.00019853,2]
[359757885,1746304243153,-450.0,0.00019853,2]
[359757886,1746304243163,-561.38599026,0.00019853,2]
[359757887,1746304243172,-450.0,0.00019853,2]
[359757888,1746304243181,-519.47554658,0.00019853,2]
[359757889,1746304243191,-450.0,0.00019853,2]
[359757890,1746304243200,-450.0,0.00019853,2]
[359757891,1746304243210,-474.32117263,0.00019853,2]
[359757892,1746304243219,-564.45,0.00019853,2]
[359757893,1746304243229,-511.54468994,0.00019853,2]
[359757894,1746304243238,-450.0,0.00019853,2]
[359757895,1746304243248,-450.0,0.00019853,2]
[359757896,1746304243257,-500.0,0.00019853,2]
[359757897,1746304243266,-450.0,0.00019853,2]
[359757898,1746304243276,-2081.08,0.00019853,2]
[359757899,1746304243285,-869.32,0.00019853,2]
[359757900,1746304243295,-869.18,0.00019853,2]
[359757901,1746304243304,-878.16,0.00019853,2]
[359757902,1746304243313,-450.0,0.00019853,2]
[359757903,1746304243323,-450.0,0.00019853,2]
[359757904,1746304243332,-450.0,0.00019853,2]
[359757905,1746304243342,-450.0,0.00019853,2]
[359757906,1746304243351,-1922.31,0.00019853,2]
[359757907,1746304243360,-450.0,0.00019853,2]
[359757908,1746304243369,-450.0,0.00019853,2]
[359757909,1746304243378,-450.0,0.00019853,2]
[359757910,1746304243387,-613.27,0.00019853,2]
[359757911,1746304243396,-450.0,0.00019853,2]
[359757912,1746304243406,-584.92,0.00019853,2]
[359757914,1746304243415,-450.0,0.00019853,2]
[359757916,1746304243424,-450.0,0.00019853,2]
[359757918,1746304243433,-405.49534162,0.00019853,2]
[359757920,1746304243442,-450.0,0.00019853,2]
[359757922,1746304243451,-450.0,0.00019853,2]
[359757924,1746304243460,-450.0,0.00019853,2]
[359757926,1746304243469,-450.0,0.00019853,2]
[359757928,1746304243479,-450.0,0.00019853,2]
[359757930,1746304243488,-450.0,0.00019853,2]
[359757934,1746304243498,-450.0,0.00019853,2]
[359757937,1746304243507,-450.0,0.00019853,2]
[359757939,1746304243516,-450.0,0.00019853,2]
[359757942,1746304243525,-450.0,0.00019853,2]
[359757945,1746304243534,-450.0,0.00019853,2]
[359757947,1746304243543,-450.0,0.00019853,2]
[359757948,1746304243552,-450.0,0.00019853,2]
[359757950,1746304243561,-450.0,0.00019853,2]
[359757952,1746304243570,-450.0,0.00019853,2]
[359757954,1746304243579,-450.0,0.00019853,2]
[359757956,1746304243588,-450.0,0.00019853,2]
[359757958,1746304243597,-450.0,0.00019853,2]
[359757960,1746304243606,-450.0,0.00019853,2]
[359757962,1746304243616,-450.0,0.00019853,2]
[359757964,1746304243625,-450.0,0.00019853,2]
[359757966,1746304243638,-450.0,0.00019853,2]
[359757968,1746304243648,-450.0,0.00019853,2]
[359757991,1746304243821,-206.7673008,0.00019853,2]
[359757993,1746304243861,-693.22,0.00019853,2]
[359757995,1746304243871,-548.94,0.00019853,2]
[359757997,1746304243880,-470.63,0.00019853,2]
[359757999,1746304243890,-450.0,0.00019853,2]
[359758001,1746304243900,-450.0,0.00019853,2]
[359758003,1746304243910,-450.0,0.00019853,2]
[359758005,1746304243919,-450.0,0.00019853,2]
[359758007,1746304243929,-196.3745295,0.00019853,2]
[359758009,1746304243938,-450.0,0.00019853,2]
[359758011,1746304243948,-450.0,0.00019853,2]
[359758013,1746304243957,-450.0,0.00019853,2]
[359758015,1746304243966,-450.0,0.00019853,2]
[359758017,1746304243976,-2040.18,0.00019853,2]
[359758019,1746304243985,-479.51,0.00019853,2]
[359758020,1746304243995,-450.0,0.00019853,2]
[359758021,1746304244005,-451.76,0.00019853,2]
[359758022,1746304244014,-1247.41,0.00019853,2]
[359758023,1746304244024,-450.0,0.00019853,2]
[359758024,1746304244033,-450.0,0.00019853,2]
[359758025,1746304244043,-450.0,0.00019853,2]
[359758026,1746304244052,-450.0,0.00019853,2]
[359758027,1746304244062,-1025.23,0.00019853,2]
[359758028,1746304244072,-450.0,0.00019853,2]
[359758029,1746304244082,-450.0,0.00019853,2]
[359758030,1746304244092,-450.0,0.00019853,2]
[359758031,1746304244102,-450.0,0.00019853,2]
[359758032,1746304244112,-450.0,0.00019853,2]
[359758033,1746304244122,-450.0,0.00019853,2]
[359758034,1746304244131,-450.0,0.00019853,2]
[359758035,1746304244141,-450.0,0.00019853,2]
[359758036,1746304244151,-450.0,0.00019854,2]
[359758037,1746304244161,-532.82,0.00019854,2]
[359758038,1746304244171,-202.6477267,0.00019854,2]
[359758039,1746304244182,-591.08,0.00019854,2]
[359758040,1746304244192,-614.19,0.00019854,2]
[359758041,1746304244202,-450.0,0.00019854,2]
[359758042,1746304244211,-450.0,0.00019854,2]
[359758043,1746304244221,-824.44,0.00019854,2]
[359758044,1746304244231,-450.0,0.00019854,2]
[359758045,1746304244240,-450.0,0.00019854,2]
[359758046,1746304244251,-450.0,0.00019854,2]
[359758047,1746304244260,-450.0,0.00019854,2]
[359758048,1746304244270,-450.0,0.00019854,2]
[359758049,1746304244279,-450.0,0.00019854,2]
[359758050,1746304244289,-532.26,0.00019854,2]
[359758051,1746304244299,-450.0,0.00019854,2]
[359758052,1746304244310,-450.0,0.00019854,2]
[359758053,1746304244320,-706.39,0.00019854,2]
[359758054,1746304244331,-564.98,0.00019854,2]
[359758055,1746304244340,-450.0,0.00019854,2]
[359758056,1746304244350,-450.0,0.00019854,2]
[359758057,1746304244361,-551.16,0.00019854,2]
[359758058,1746304244372,-450.0,0.00019854,2]
[359758059,1746304244383,-496.59,0.00019854,2]
[359758060,1746304244392,-463.4,0.00019854,2]
[359758061,1746304244402,-9949.12251777,0.00019855,2]
[359758062,1746304244412,-2494.27845789,0.00019855,2]
[359758063,1746304244422,-500.0,0.00019863,2]
[359758064,1746304244431,-385.77527078,0.00019865,2]
[359758065,1746304244441,-209.09092274,0.00019865,2]
[359758066,1746304244453,-181.57583241,0.00019865,2]
[359758067,1746304244462,-500.0,0.00019865,2]
[359758068,1746304244471,-258.38763662,0.00019865,2]
[359758069,1746304244481,-258.7436912,0.00019865,2]
[359758070,1746304244490,-316.91735972,0.00019865,2]
[359758071,1746304244500,-500.0,0.00019865,2]
[359758072,1746304244509,-500.0,0.00019865,2]
[359758073,1746304244519,-500.0,0.00019865,2]
[359758074,1746304244528,-500.0,0.00019865,2]
[359758075,1746304244538,-500.0,0.00019865,2]
[359758076,1746304244547,-500.0,0.00019865,2]
[359758077,1746304244556,-500.0,0.00019865,2]
[359758078,1746304244565,-500.0,0.00019865,2]
[359758079,1746304244575,-500.0,0.00019865,2]
[359758080,1746304244585,-181.12058383,0.00019865,2]
[359758081,1746304244594,-500.0,0.00019865,2]
[359758082,1746304244604,-493.43391531,0.00019865,2]
[359758083,1746304244614,-450.0,0.00019866,2]
[359758084,1746304244623,-450.0,0.00019866,2]
[359758085,1746304244633,-450.0,0.00019866,2]
[359758086,1746304244643,-450.0,0.00019866,2]
[359758087,1746304244653,-450.0,0.00019866,2]
[359758088,1746304244663,-607.94,0.00019866,2]
[359758089,1746304244672,-450.0,0.00019866,2]
[359758090,1746304244682,-450.0,0.00019866,2]
[359758091,1746304244692,-450.0,0.00019866,2]
[359758092,1746304244702,-462.31,0.00019866,2]
[359758093,1746304244711,-643.68,0.00019866,2]
[359758094,1746304244722,-1097.27,0.00019866,2]
[359758095,1746304244731,-450.0,0.00019866,2]
[359758096,1746304244741,-450.0,0.00019866,2]
[359758097,1746304244751,-577.35,0.00019866,2]
[359758098,1746304244760,-1040.58,0.00019866,2]
[359758099,1746304244769,-450.0,0.00019866,2]
[359758100,1746304244779,-450.0,0.00019866,2]
[359758101,1746304244790,-450.0,0.00019866,2]
[359758102,1746304244800,-725.9,0.00019866,2]
[359758103,1746304244810,-450.0,0.00019866,2]
[359758104,1746304244820,-87433.61,0.00019866,2]
[359758105,1746304244830,-5086.27,0.00019866,2]
[359758106,1746304244840,-535.38,0.00019866,2]
[359758107,1746304244850,-493.44,0.00019866,2]
[359758108,1746304244859,-481.05,0.00019866,2]
[359758109,1746304244868,-450.0,0.00019866,2]
[359758110,1746304244878,-450.0,0.00019866,2]
[359758111,1746304244888,-450.0,0.00019866,2]
[359758112,1746304244898,-450.0,0.00019866,2]
[359758113,1746304244907,-450.0,0.00019866,2]
[359758114,1746304244916,-450.0,0.00019866,2]
[359758115,1746304244926,-450.0,0.00019866,2]
[359758116,1746304244935,-720.19,0.00019866,2]
[359758117,1746304244944,-807.25,0.00019866,2]
[359758118,1746304244954,-536.35,0.00019866,2]
[359758119,1746304244963,-476.75,0.00019866,2]
[359758120,1746304244973,-450.0,0.00019866,2]
[359758121,1746304244982,-450.0,0.00019866,2]
[359758122,1746304244991,-3646.96,0.00019866,2]
[359758123,1746304245001,-1785.18,0.00019866,2]
[359758124,1746304245010,-450.0,0.00019866,2]
[359758125,1746304245020,-3713.12,0.00019866,2]
[359758126,1746304245031,-667.39,0.00019866,2]
[359758127,1746304245041,-512.2,0.00019866,2]
[359758128,1746304245051,-450.0,0.00019866,2]
[359758129,1746304245061,-1837.43,0.00019866,2]
[359758130,1746304245070,-450.0,0.00019866,2]
[359758131,1746304245080,-450.0,0.00019866,2]
[359758132,1746304245089,-581.40503227,0.00019866,2]
[359758133,1746304245099,-450.0,0.00019866,2]
[359758134,1746304245109,-620.45,0.00019866,2]
[359758135,1746304245118,-450.0,0.00019866,2]
[359758136,1746304245128,-4084.64,0.00019866,2]
[359758137,1746304245139,-467.71,0.00019866,2]
[359758138,1746304245149,-450.0,0.00019866,2]
[359758139,1746304245158,-314.97,0.00019866,2]
[359758140,1746304245167,-831.59,0.00019866,2]
[359758141,1746304245177,-450.0,0.00019866,2]
[359758142,1746304245186,-629.58,0.00019866,2]
[359758143,1746304245196,-591.23,0.00019867,2]
[359758144,1746304245206,-450.0,0.00019867,2]
[359758145,1746304245216,-450.0,0.00019867,2]
[359758146,1746304245226,-450.0,0.00019867,2]
[359758147,1746304245235,-450.0,0.00019867,2]
[359758148,1746304245246,-889.35,0.00019867,2]
[359758149,1746304245255,-450.0,0.00019867,2]
[359758150,1746304245265,-450.0,0.00019867,2]
[359758151,1746304245275,-450.0,0.00019867,2]
[359758152,1746304245284,-450.0,0.00019867,2]
[359758153,1746304245293,-450.0,0.00019867,2]
[359758154,1746304245303,-450.0,0.00019867,2]
[359758155,1746304245312,-450.0,0.00019867,2]
[359758156,1746304245322,-322.41338905,0.00019867,2]
[359758157,1746304245332,-450.0,0.00019867,2]
[359758158,1746304245341,-537.08,0.00019867,2]
[359758159,1746304245351,-450.0,0.00019867,2]
[359758160,1746304245361,-450.0,0.00019867,2]
[359758161,1746304245371,-450.0,0.00019867,2]
[359758162,1746304245380,-450.0,0.00019867,2]
[359758163,1746304245390,-450.0,0.00019867,2]
[359758164,1746304245401,-450.0,0.00019867,2]
[359758165,1746304245411,-450.0,0.00019867,2]
[359758166,1746304245420,-839.08,0.00019867,2]
[359758167,1746304245430,-450.0,0.00019867,2]
[359758168,1746304245440,-4825.7,0.00019867,2]
[359758169,1746304245449,-2032.6,0.00019867,2]
[359758170,1746304245459,-999.0,0.00019867,2]
[359758171,1746304245468,-578.29,0.00019867,2]
[359758172,1746304245477,-450.0,0.00019867,2]
[359758173,1746304245487,-6113.01,0.00019867,2]
[359758174,1746304245497,-450.0,0.00019867,2]
[359758175,1746304245507,-3887.84,0.00019867,2]
[359758176,1746304245518,-688.7,0.00019867,2]
[359758177,1746304245529,-450.0,0.00019867,2]
[359758178,1746304245540,-1535.69,0.00019867,2]
[359758179,1746304245550,-450.0,0.00019867,2]
[359758180,1746304245560,-3979.13,0.00019867,2]
[359758181,1746304245569,-766.89,0.00019867,2]
[359758182,1746304245578,-83991.74,0.00019867,2]
[359758183,1746304245587,-1426.84,0.00019867,2]
[359758184,1746304245596,-450.0,0.00019867,2]
[359758185,1746304245607,-3626.94,0.00019867,2]
[359758186,1746304245618,-2284.18,0.00019867,2]
[359758187,1746304245627,-450.0,0.00019867,2]
[359758188,1746304245637,-17865.17,0.00019867,2]
[359758189,1746304245646,-580.05,0.00019867,2]
[359758190,1746304245655,-450.0,0.00019867,2]
[359758191,1746304245664,-1228.46,0.00019867,2]
[359758192,1746304245673,-462.01,0.00019867,2]
[359758193,1746304245682,-450.0,0.00019867,2]
[359758194,1746304245691,-450.0,0.00019867,2]
[359758195,1746304245700,-11176.54,0.00019867,2]
[359758196,1746304245710,-450.0,0.00019867,2]
[359758197,1746304245719,-592.63,0.00019867,2]
[359758198,1746304245729,-450.0,0.00019867,2]
[359758199,1746304245738,-1516.22,0.00019867,2]
[359758200,1746304245748,-450.0,0.00019867,2]
[359758201,1746304245757,-450.0,0.00019867,2]
[359758202,1746304245766,-466.62,0.00019867,2]
[359758203,1746304245776,-450.0,0.00019867,2]
[359758204,1746304245786,-450.0,0.00019867,2]
[359758205,1746304245795,-636.65,0.00019867,2]
[359758206,1746304245804,-450.0,0.00019867,2]
[359758207,1746304245814,-476.49,0.00019867,2]
[359758208,1746304245826,-450.0,0.00019867,2]
[359758209,1746304245835,-450.0,0.00019867,2]
[359758210,1746304245845,-450.0,0.00019867,2]
[359758211,1746304245854,-450.0,0.00019867,2]
[359758212,1746304245864,-450.0,0.00019867,2]
[359758213,1746304245874,-452.79,0.00019867,2]
[359758214,1746304245883,-450.0,0.00019867,2]
[359758215,1746304245894,-208.05925861,0.00019868,2]
[359758216,1746304245905,-546.78947927,0.00019868,2]
[359758217,1746304245915,-500.0,0.00019873,2]
[359758218,1746304245926,-500.0,0.00019873,2]
[359758219,1746304245934,-154.61178396,0.00019873,2]
[359758220,1746304245943,-500.0,0.00019873,2]
[359758221,1746304245952,-506.12804986,0.00019873,2]
[359758222,1746304245962,-500.90438284,0.00019873,2]
[359758223,1746304245971,-502.44539025,0.00019873,2]
[359758224,1746304245980,-500.0,0.00019873,2]
[359758225,1746304245989,-156.32997402,0.00019873,2]
[359758226,1746304245998,-207.79775041,0.00019873,2]
[359758227,1746304246007,-500.0,0.00019873,2]
[359758228,1746304246016,-505.01338726,0.00019873,2]
[359758229,1746304246025,-161.1858119,0.00019873,2]
[359758230,1746304246035,-500.0,0.00019873,2]
[359758231,1746304246044,-500.0,0.00019873,2]
[359758232,1746304246053,-2847.499,0.00019879,2]
[359758233,1746304246063,-168.088,0.00019879,2]
[359758234,1746304246073,-64100.37003855,0.0001988,2]
[359758235,1746304246082,-500.0,0.00019885,2]
[359758236,1746304246091,-500.0,0.00019885,2]
[359758237,1746304246101,-500.0,0.00019885,2]
[359758238,1746304246110,-150.0,0.00019885,2]
[359758239,1746304246120,-150.0,0.00019885,2]
[359758240,1746304246129,-150.0,0.00019885,2]
[359758241,1746304246138,-150.0,0.00019885,2]
[359758242,1746304246148,-198.78392716,0.00019885,2]
[359758243,1746304246157,-150.0,0.00019885,2]
[359758244,1746304246166,-422.0,0.00019885,2]
[359758245,1746304246176,-150.0,0.00019885,2]
[359758246,1746304246186,-150.0,0.00019885,2]
[359758247,1746304246195,-150.0,0.00019885,2]
[359758248,1746304246259,-500.0,0.00019885,2]
[359758249,1746304246269,-150.0,0.00019885,2]
[359758250,1746304246279,-304.6715182,0.00019886,2]
[359758251,1746304246288,-894.69465589,0.0001989,2]
[359758252,1746304246298,-451.40881658,0.00019899,2]
[359758253,1746304246307,-450.0,0.00019899,2]
[359758254,1746304246317,-450.0,0.00019899,2]
[359758255,1746304246326,-450.0,0.00019899,2]
[359758256,1746304246336,-450.0,0.00019899,2]
[359758257,1746304246346,-521.70651769,0.00019899,2]
[359758258,1746304246355,-500.0,0.00019899,2]
[359758259,1746304246364,-500.0,0.00019899,2]
[359758260,1746304246378,-1000.0,0.000199,2]
[359758261,1746304246387,-1000.0,0.000199,2]
[359758262,1746304246398,-1000.0,0.000199,2]
[359758263,1746304246408,-1000.0,0.000199,2]
[359758264,1746304246419,-1000.0,0.000199,2]
[359758265,1746304246428,-1000.0,0.000199,2]
[359758266,1746304246437,-1000.0,0.000199,2]
[359758267,1746304246446,-1197.0,0.000199,2]
[359758268,1746304246457,-1000.0,0.000199,2]
[359758269,1746304246467,-1000.0,0.000199,2]
[359758270,1746304246476,-1000.0,0.000199,2]
[359758271,1746304246485,-1001.0,0.000199,2]
[359758272,1746304246495,-1000.0,0.000199,2]
[359758273,1746304246504,-1000.0,0.000199,2]
[359758274,1746304246513,-181.48333988,0.000199,2]
[359758275,1746304246522,-1001.0,0.000199,2]
[359758276,1746304246531,-73932.09274215,0.000199,2]
[359758277,1746304246541,-4750.45013189,0.000199,3]
[359758278,1746304246551,-180.13927567,0.000199,2]
[359758279,1746304246560,-1262.32566798,0.000199,2]
[359758280,1746304246570,-2947.6114097,0.000199,2]
[359758281,1746304246579,-196.25831765,0.000199,3]
[359758282,1746304246588,-323.5640185,0.000199,2]
[359758283,1746304246598,-9949.12251777,0.000199,2]
[359758284,1746304246607,-2494.27845789,0.000199,2]
[359758285,1746304246616,-5205.05028845,0.000199,2]
[359758286,1746304246625,-700.4550511,0.00019905,2]
[359758287,1746304246634,-243.771,0.00019949,2]
[359758288,1746304246643,-924.0,0.00019949,2]
[359758289,1746304246653,-270.225,0.00019949,2]
[359758290,1746304246663,-1000.0,0.0001997,2]
[359758291,1746304246673,-1000.0,0.0001997,2]
[359758292,1746304246682,-1914.02013276,0.0001997,2]
[359758293,1746304246691,-514.0,0.0001997,2]
[359758294,1746304246700,-4648.0,0.00019973,2]
[359758295,1746304246709,-500.0,0.00019973,2]
[359758296,1746304246719,-500.0,0.00019973,2]
[359758297,1746304246729,-500.0,0.00019973,2]
[359758298,1746304246738,-500.0,0.00019973,2]
[359758299,1746304246748,-511.47586166,0.00019973,2]
[359758300,1746304246757,-500.0,0.00019973,2]
[359758301,1746304246767,-330.0,0.00019973,2]
[359758302,1746304246776,-500.0,0.00019973,2]
[359758303,1746304246786,-163.65177297,0.00019973,2]
[359758304,1746304246795,-506.72470226,0.00019973,2]
[359758305,1746304246804,-500.0,0.00019973,2]
[359758306,1746304246816,-500.0,0.00019973,2]
[359758307,1746304246825,-500.0,0.00019973,2]
[359758308,1746304246834,-500.0,0.00019973,2]
[359758309,1746304246843,-387.7961174,0.00019973,2]
[359758310,1746304246853,-500.0,0.00019973,2]
[359758311,1746304246862,-500.0,0.00019973,2]
[359758312,1746304246872,-500.0,0.00019973,2]
[359758313,1746304246881,-502.98408913,0.00019973,2]
[359758314,1746304246891,-500.0,0.00019985,2]
[359758315,1746304246900,-500.0,0.00019985,2]
[359758316,1746304246910,-500.0,0.00019985,2]
[359758317,1746304246919,-500.0,0.00019985,2]
[359758318,1746304246929,-9360.1298517,0.00019986,2]
[359758319,1746304246938,-9430.7130207,0.00019986,2]
[359758320,1746304246947,-9752.3698796,0.00019986,2]
[359758321,1746304246956,-249166.8214331,0.00019986,2]
[359758322,1746304246965,-2642.573494,0.00019986,2]
[359758323,1746304246974,-18354.47976079,0.0001999,2]
[359758324,1746304246983,-894.69465589,0.0001999,2]
[359758325,1746304246992,-894.69465589,0.0001999,2]
[359758326,1746304247001,-1331.0,0.00019999,2]
[359758327,1746304247011,-500.0,0.00019999,2]
[359758328,1746304247020,-500.0,0.00019999,2]
[359758329,1746304247030,-666.0,0.00019999,2]
[359758330,1746304247039,-500.0,0.00019999,2]